[Event "Titled Tuesday Blitz February 07 Early 2023"]
[White "Rakhmatullaev, Almas"]
[Black "tuschessCM1"]
[WhiteFideId "14205793"]
[WhiteElo "2275"]
[BlackElo "2638"]
[Result "1-0"]
[Round "11"]
[TimeControl "180+2"]
[Date "2023.02.07"]
[WhiteClock "0:00:20"]
[BlackClock "0:00:01"]

1. e4 {[%clk 0:03:00]}  c6 {[%clk 0:02:59]} 2. Nf3 {[%clk 0:03:00]}  d5 {[%clk 0:02:59]} 3. Nc3 {[%clk 0:03:01]}  dxe4 {[%clk 0:02:58]} 4. Nxe4 {[%clk 0:03:02]}  Nf6 {[%clk 0:02:58]} 5. Qe2 {[%clk 0:03:02]}  Nxe4 {[%clk 0:02:57]} 6. Qxe4 {[%clk 0:03:03]}  Qd5 {[%clk 0:02:57]} 7. Bd3 {[%clk 0:03:01]}  Qxe4+ {[%clk 0:02:55]} 8. Bxe4 {[%clk 0:03:02]}  Na6 {[%clk 0:02:56]} 9. d4 {[%clk 0:02:55]}  Nb4 {[%clk 0:02:54]} 10. c3 {[%clk 0:02:55]}  Nd5 {[%clk 0:02:46]} 11. O-O {[%clk 0:02:54]}  Nf6 {[%clk 0:02:38]} 12. Bc2 {[%clk 0:02:53]}  Be6 {[%clk 0:02:36]} 13. Re1 {[%clk 0:02:52]}  Bd5 {[%clk 0:02:26]} 14. Ne5 {[%clk 0:02:52]}  Nd7 {[%clk 0:02:21]} 15. Nd3 {[%clk 0:02:46]}  e6 {[%clk 0:02:05]} 16. b3 {[%clk 0:02:42]}  c5 {[%clk 0:02:02]} 17. Nf4 {[%clk 0:02:42]}  O-O-O {[%clk 0:01:52]} 18. Nxd5 {[%clk 0:02:27]}  exd5 {[%clk 0:01:53]} 19. Bf4 {[%clk 0:02:24]}  g6 {[%clk 0:01:51]} 20. Bg5 {[%clk 0:02:07]}  f6 {[%clk 0:01:48]} 21. Bf4 {[%clk 0:02:07]}  b6 {[%clk 0:01:04]} 22. Bd3 {[%clk 0:02:01]}  Kb7 {[%clk 0:01:02]} 23. Re6 {[%clk 0:01:58]}  cxd4 {[%clk 0:00:53]} 24. cxd4 {[%clk 0:01:59]}  Ba3 {[%clk 0:00:49]} 25. Bb5 {[%clk 0:01:55]}  Nb8 {[%clk 0:00:28]} 26. Rxf6 {[%clk 0:01:49]}  Rhf8 {[%clk 0:00:22]} 27. Rxf8 {[%clk 0:01:40]}  Rxf8 {[%clk 0:00:23]} 28. Bg3 {[%clk 0:01:27]}  Nc6 {[%clk 0:00:21]} 29. Bxc6+ {[%clk 0:01:20]}  Kxc6 {[%clk 0:00:22]} 30. Re1 {[%clk 0:01:16]}  Rf7 {[%clk 0:00:22]} 31. Re8 {[%clk 0:01:06]}  Bb2 {[%clk 0:00:20]} 32. Be5 {[%clk 0:01:05]}  Rd7 {[%clk 0:00:19]} 33. Rc8+ {[%clk 0:01:01]}  Kb5 {[%clk 0:00:19]} 34. Rc2 {[%clk 0:00:54]}  Ba3 {[%clk 0:00:19]} 35. f4 {[%clk 0:00:53]}  Bb4 {[%clk 0:00:18]} 36. Kf2 {[%clk 0:00:53]}  Rf7 {[%clk 0:00:18]} 37. Ke3 {[%clk 0:00:48]}  Bf8 {[%clk 0:00:17]} 38. g4 {[%clk 0:00:41]}  Kb4 {[%clk 0:00:17]} 39. Kd3 {[%clk 0:00:31]}  Ka3 {[%clk 0:00:16]} 40. Rf2 {[%clk 0:00:32]}  a5 {[%clk 0:00:13]} 41. f5 {[%clk 0:00:32]}  gxf5 {[%clk 0:00:14]} 42. gxf5 {[%clk 0:00:33]}  b5 {[%clk 0:00:10]} 43. f6 {[%clk 0:00:33]}  Bh6 {[%clk 0:00:08]} 44. Rg2 {[%clk 0:00:27]}  Rd7 {[%clk 0:00:05]} 45. h4 {[%clk 0:00:24]}  a4 {[%clk 0:00:04]} 46. bxa4 {[%clk 0:00:23]}  bxa4 {[%clk 0:00:04]} 47. Rc2 {[%clk 0:00:20]}  Rb7 {[%clk 0:00:02]} 48. Bd6+ {[%clk 0:00:20]}  Rb4 {[%clk 0:00:02]} 49. Rc3+ {[%clk 0:00:20]}  Kxa2 {[%clk 0:00:01]} 50. Bxb4 {[%clk 0:00:20]} 1-0


[Site "https://www.chess.com"]

[Event "Titled Tuesday Blitz February 07 Early 2023"]
[White "Csonka, Balazs"]
[Black "Shimanov, Aleksandr"]
[WhiteFideId "742910"]
[BlackFideId "4198603"]
[WhiteElo "2496"]
[BlackElo "2581"]
[Result "0-1"]
[Round "11"]
[TimeControl "180+2"]
[Date "2023.02.07"]
[WhiteClock "0:00:02"]
[BlackClock "0:00:04"]

1. d4 {[%clk 0:03:00]}  e5 {[%clk 0:02:40]} 2. dxe5 {[%clk 0:02:59]}  Nc6 {[%clk 0:02:40]} 3. Nf3 {[%clk 0:02:54]}  Qe7 {[%clk 0:02:40]} 4. Bf4 {[%clk 0:02:50]}  Qb4+ {[%clk 0:02:40]} 5. Bd2 {[%clk 0:02:50]}  Qxb2 {[%clk 0:02:40]} 6. Nc3 {[%clk 0:02:49]}  Bb4 {[%clk 0:02:34]} 7. Rb1 {[%clk 0:02:45]}  Qa3 {[%clk 0:02:34]} 8. Nd5 {[%clk 0:02:16]}  Bxd2+ {[%clk 0:02:33]} 9. Qxd2 {[%clk 0:02:17]}  Kd8 {[%clk 0:02:27]} 10. e4 {[%clk 0:01:44]}  h6 {[%clk 0:02:05]} 11. Bc4 {[%clk 0:01:38]}  Nge7 {[%clk 0:02:02]} 12. O-O {[%clk 0:01:33]}  Ng6 {[%clk 0:02:01]} 13. Rb3 {[%clk 0:00:45]}  Qc5 {[%clk 0:02:00]} 14. Rc3 {[%clk 0:00:45]}  Qa5 {[%clk 0:01:39]} 15. Rb1 {[%clk 0:00:33]}  a6 {[%clk 0:01:36]} 16. Bb3 {[%clk 0:00:26]}  Re8 {[%clk 0:01:30]} 17. Rd1 {[%clk 0:00:23]}  Ngxe5 {[%clk 0:01:01]} 18. Nxe5 {[%clk 0:00:24]}  Rxe5 {[%clk 0:01:02]} 19. Qf4 {[%clk 0:00:20]}  f6 {[%clk 0:00:52]} 20. Rg3 {[%clk 0:00:19]}  Rg5 {[%clk 0:00:47]} 21. Rxg5 {[%clk 0:00:09]}  hxg5 {[%clk 0:00:48]} 22. Qf5 {[%clk 0:00:10]}  Qa3 {[%clk 0:00:38]} 23. e5 {[%clk 0:00:04]}  Nxe5 {[%clk 0:00:32]} 24. Nxf6 {[%clk 0:00:04]}  Qf8 {[%clk 0:00:32]} 25. Qxe5 {[%clk 0:00:02]}  Qxf6 {[%clk 0:00:33]} 26. Qc5 {[%clk 0:00:01]}  d6 {[%clk 0:00:34]} 27. Qd5 {[%clk 0:00:02]}  c6 {[%clk 0:00:14]} 28. Qxd6+ {[%clk 0:00:02]}  Qxd6 {[%clk 0:00:14]} 29. Rxd6+ {[%clk 0:00:03]}  Ke7 {[%clk 0:00:11]} 30. Rg6 {[%clk 0:00:03]}  Kf8 {[%clk 0:00:11]} 31. Rxg5 {[%clk 0:00:03]}  Bd7 {[%clk 0:00:12]} 32. f3 {[%clk 0:00:03]}  a5 {[%clk 0:00:12]} 33. Kf2 {[%clk 0:00:02]}  a4 {[%clk 0:00:12]} 34. Bc4 {[%clk 0:00:03]}  b5 {[%clk 0:00:13]} 35. Bd3 {[%clk 0:00:03]}  a3 {[%clk 0:00:13]} 36. Re5 {[%clk 0:00:02]}  Be8 {[%clk 0:00:13]} 37. c4 {[%clk 0:00:02]}  b4 {[%clk 0:00:13]} 38. Bc2 {[%clk 0:00:02]}  Rd8 {[%clk 0:00:13]} 39. Ke2 {[%clk 0:00:01]}  Bf7 {[%clk 0:00:13]} 40. Bb3 {[%clk 0:00:02]}  Bg6 {[%clk 0:00:13]} 41. Ke3 {[%clk 0:00:02]}  Rd3+ {[%clk 0:00:12]} 42. Kf4 {[%clk 0:00:01]}  Rc3 {[%clk 0:00:11]} 43. Ra5 {[%clk 0:00:01]}  Bf7 {[%clk 0:00:11]} 44. Ke5 {[%clk 0:00:01]}  Bxc4 {[%clk 0:00:10]} 45. Bxc4 {[%clk 0:00:02]}  Rxc4 {[%clk 0:00:11]} 46. Kd6 {[%clk 0:00:02]}  Kf7 {[%clk 0:00:10]} 47. f4 {[%clk 0:00:02]}  Rxf4 {[%clk 0:00:09]} 48. Kxc6 {[%clk 0:00:02]}  Rf2 {[%clk 0:00:10]} 49. Kc5 {[%clk 0:00:02]}  Rxg2 {[%clk 0:00:05]} 50. Kxb4 {[%clk 0:00:02]}  Rxa2 {[%clk 0:00:06]} 51. h4 {[%clk 0:00:02]}  Rh2 {[%clk 0:00:06]} 52. Rxa3 {[%clk 0:00:02]}  Rxh4+ {[%clk 0:00:06]} 53. Kc5 {[%clk 0:00:02]}  Rf4 {[%clk 0:00:05]} 54. Kd5 {[%clk 0:00:02]}  Kf6 {[%clk 0:00:06]} 55. Ra8 {[%clk 0:00:01]}  Rb4 {[%clk 0:00:04]} 56. Rf8+ {[%clk 0:00:01]}  Kg5 {[%clk 0:00:05]} 57. Ke5 {[%clk 0:00:01]}  Kg4 {[%clk 0:00:05]} 58. Rf1 {[%clk 0:00:01]}  g5 {[%clk 0:00:05]} 59. Rg1+ {[%clk 0:00:02]}  Kh5 {[%clk 0:00:05]} 60. Kf5 {[%clk 0:00:02]}  Rf4+ {[%clk 0:00:05]} 61. Ke5 {[%clk 0:00:02]}  Ra4 {[%clk 0:00:04]} 62. Kf5 {[%clk 0:00:03]}  Ra5+ {[%clk 0:00:04]} 63. Ke4 {[%clk 0:00:03]}  g4 {[%clk 0:00:03]} 64. Rh1+ {[%clk 0:00:03]}  Kg5 {[%clk 0:00:03]} 65. Ke3 {[%clk 0:00:04]}  Rf5 {[%clk 0:00:03]} 66. Rg1 {[%clk 0:00:02]}  Kh4 {[%clk 0:00:03]} 67. Rh1+ {[%clk 0:00:03]}  Kg3 {[%clk 0:00:04]} 68. Rg1+ {[%clk 0:00:02]}  Kh3 {[%clk 0:00:04]} 69. Ke4 {[%clk 0:00:03]}  Rf8 {[%clk 0:00:04]} 70. Ke5 {[%clk 0:00:02]}  g3 {[%clk 0:00:04]} 0-1


[Site "https://www.chess.com"]

[Event "Titled Tuesday Blitz February 07 Early 2023"]
[White "Bulmaga, Irina"]
[Black "Bok, Benjamin"]
[WhiteFideId "13903063"]
[BlackFideId "1017063"]
[WhiteElo "2422"]
[BlackElo "2607"]
[Result "0-1"]
[Round "11"]
[TimeControl "180+2"]
[Date "2023.02.07"]
[WhiteClock "0:00:02"]
[BlackClock "0:00:10"]

1. Nf3 {[%clk 0:03:00]}  g6 {[%clk 0:02:57]} 2. g3 {[%clk 0:02:58]}  Bg7 {[%clk 0:02:58]} 3. Bg2 {[%clk 0:02:58]}  e5 {[%clk 0:02:54]} 4. d3 {[%clk 0:02:55]}  Ne7 {[%clk 0:02:54]} 5. h4 {[%clk 0:02:50]}  h6 {[%clk 0:02:52]} 6. c4 {[%clk 0:02:38]}  d6 {[%clk 0:02:47]} 7. Nc3 {[%clk 0:02:22]}  Nbc6 {[%clk 0:02:44]} 8. Rb1 {[%clk 0:02:13]}  f5 {[%clk 0:02:43]} 9. Be3 {[%clk 0:02:03]}  Be6 {[%clk 0:02:41]} 10. Qc1 {[%clk 0:02:02]}  Qd7 {[%clk 0:02:40]} 11. b4 {[%clk 0:01:58]}  Nd8 {[%clk 0:02:29]} 12. Nd2 {[%clk 0:01:43]}  c6 {[%clk 0:02:26]} 13. Nb3 {[%clk 0:01:33]}  Nf7 {[%clk 0:02:20]} 14. b5 {[%clk 0:01:30]}  O-O {[%clk 0:02:17]} 15. bxc6 {[%clk 0:01:18]}  bxc6 {[%clk 0:02:18]} 16. f4 {[%clk 0:01:13]}  Rae8 {[%clk 0:02:03]} 17. Na5 {[%clk 0:01:07]}  Rb8 {[%clk 0:01:56]} 18. O-O {[%clk 0:01:05]}  Rxb1 {[%clk 0:01:55]} 19. Nxb1 {[%clk 0:01:01]}  exf4 {[%clk 0:01:47]} 20. gxf4 {[%clk 0:01:00]}  h5 {[%clk 0:01:37]} 21. Nd2 {[%clk 0:00:41]}  Nh6 {[%clk 0:01:34]} 22. Nf3 {[%clk 0:00:40]}  Ng4 {[%clk 0:01:34]} 23. Ng5 {[%clk 0:00:40]}  Kh8 {[%clk 0:01:09]} 24. Kh1 {[%clk 0:00:39]}  Bg8 {[%clk 0:01:03]} 25. Bg1 {[%clk 0:00:39]}  d5 {[%clk 0:01:01]} 26. Nb3 {[%clk 0:00:28]}  dxc4 {[%clk 0:01:01]} 27. dxc4 {[%clk 0:00:28]}  Rd8 {[%clk 0:00:49]} 28. Nc5 {[%clk 0:00:26]}  Qd2 {[%clk 0:00:40]} 29. Nce6 {[%clk 0:00:20]}  Bxe6 {[%clk 0:00:38]} 30. Nxe6 {[%clk 0:00:19]}  Qxc1 {[%clk 0:00:37]} 31. Rxc1 {[%clk 0:00:19]}  Rd2 {[%clk 0:00:37]} 32. Nxg7 {[%clk 0:00:18]}  Kxg7 {[%clk 0:00:38]} 33. Bf3 {[%clk 0:00:18]}  Rxa2 {[%clk 0:00:35]} 34. Rd1 {[%clk 0:00:18]}  Kf7 {[%clk 0:00:34]} 35. Rd6 {[%clk 0:00:16]}  a5 {[%clk 0:00:32]} 36. Bc5 {[%clk 0:00:15]}  Ng8 {[%clk 0:00:27]} 37. Rxc6 {[%clk 0:00:14]}  N8f6 {[%clk 0:00:25]} 38. Bd4 {[%clk 0:00:14]}  Ne4 {[%clk 0:00:20]} 39. c5 {[%clk 0:00:12]}  Ng3+ {[%clk 0:00:20]} 40. Kg2 {[%clk 0:00:12]}  Nxe2 {[%clk 0:00:20]} 41. Bxe2 {[%clk 0:00:10]}  Rxe2+ {[%clk 0:00:21]} 42. Kf3 {[%clk 0:00:10]}  Rd2 {[%clk 0:00:22]} 43. Rd6 {[%clk 0:00:08]}  a4 {[%clk 0:00:20]} 44. c6 {[%clk 0:00:07]}  Rc2 {[%clk 0:00:18]} 45. Be5 {[%clk 0:00:03]}  a3 {[%clk 0:00:16]} 46. Rd7+ {[%clk 0:00:03]}  Ke6 {[%clk 0:00:16]} 47. Ra7 {[%clk 0:00:02]}  Nxe5+ {[%clk 0:00:12]} 48. fxe5 {[%clk 0:00:03]}  Kxe5 {[%clk 0:00:12]} 49. c7 {[%clk 0:00:02]}  a2 {[%clk 0:00:11]} 50. Rxa2 {[%clk 0:00:01]}  Rxc7 {[%clk 0:00:11]} 51. Ra5+ {[%clk 0:00:02]}  Kf6 {[%clk 0:00:11]} 52. Ra6+ {[%clk 0:00:03]}  Kg7 {[%clk 0:00:12]} 53. Rd6 {[%clk 0:00:03]}  Rc3+ {[%clk 0:00:11]} 54. Kf4 {[%clk 0:00:03]}  Rc4+ {[%clk 0:00:11]} 55. Kg3 {[%clk 0:00:03]}  Rg4+ {[%clk 0:00:11]} 56. Kh3 {[%clk 0:00:03]}  Re4 {[%clk 0:00:12]} 57. Rd7+ {[%clk 0:00:03]}  Kf6 {[%clk 0:00:12]} 58. Rd6+ {[%clk 0:00:04]}  Re6 {[%clk 0:00:12]} 59. Rd5 {[%clk 0:00:04]}  Re3+ {[%clk 0:00:12]} 60. Kg2 {[%clk 0:00:04]}  Ke6 {[%clk 0:00:12]} 61. Ra5 {[%clk 0:00:04]}  Re4 {[%clk 0:00:12]} 62. Ra6+ {[%clk 0:00:03]}  Kf7 {[%clk 0:00:12]} 63. Ra7+ {[%clk 0:00:03]}  Kf6 {[%clk 0:00:12]} 64. Ra6+ {[%clk 0:00:03]}  Re6 {[%clk 0:00:12]} 65. Ra5 {[%clk 0:00:03]}  Re3 {[%clk 0:00:11]} 66. Ra6+ {[%clk 0:00:02]}  Kg7 {[%clk 0:00:10]} 67. Ra7+ {[%clk 0:00:02]}  Kh6 {[%clk 0:00:10]} 68. Ra8 {[%clk 0:00:03]}  f4 {[%clk 0:00:08]} 69. Rf8 {[%clk 0:00:02]}  Rg3+ {[%clk 0:00:08]} 70. Kh2 {[%clk 0:00:01]}  Rg4 {[%clk 0:00:09]} 71. Kh3 {[%clk 0:00:02]}  Kg7 {[%clk 0:00:09]} 72. Rb8 {[%clk 0:00:02]}  Kf6 {[%clk 0:00:10]} 73. Rb6+ {[%clk 0:00:02]}  Ke5 {[%clk 0:00:10]} 0-1


[Site "https://www.chess.com"]

[Event "Titled Tuesday Blitz February 07 Early 2023"]
[White "Yuan, Qingyu"]
[Black "Martynov, Pavel"]
[WhiteFideId "8609772"]
[BlackFideId "4101260"]
[WhiteElo "2373"]
[BlackElo "2414"]
[Result "1-0"]
[Round "11"]
[TimeControl "180+2"]
[Date "2023.02.07"]
[WhiteClock "0:00:23"]
[BlackClock "0:00:21"]

1. e4 {[%clk 0:03:00]}  c5 {[%clk 0:02:58]} 2. Nf3 {[%clk 0:03:01]}  a6 {[%clk 0:02:55]} 3. c3 {[%clk 0:03:00]}  b5 {[%clk 0:02:41]} 4. d4 {[%clk 0:03:00]}  cxd4 {[%clk 0:02:41]} 5. cxd4 {[%clk 0:03:01]}  Bb7 {[%clk 0:02:41]} 6. Bd3 {[%clk 0:02:57]}  Nf6 {[%clk 0:02:36]} 7. Qe2 {[%clk 0:02:56]}  d5 {[%clk 0:02:34]} 8. e5 {[%clk 0:02:45]}  Ne4 {[%clk 0:02:34]} 9. e6 {[%clk 0:02:35]}  fxe6 {[%clk 0:02:22]} 10. Nbd2 {[%clk 0:02:29]}  Nf6 {[%clk 0:01:19]} 11. Ng5 {[%clk 0:02:17]}  Bc8 {[%clk 0:01:04]} 12. Ndf3 {[%clk 0:01:34]}  Nc6 {[%clk 0:01:03]} 13. O-O {[%clk 0:01:21]}  Qd6 {[%clk 0:01:01]} 14. Ne5 {[%clk 0:01:09]}  Nxd4 {[%clk 0:00:58]} 15. Qe3 {[%clk 0:01:08]}  Qb6 {[%clk 0:00:42]} 16. Nef7 {[%clk 0:00:47]}  Rg8 {[%clk 0:00:41]} 17. Ne5 {[%clk 0:00:37]}  Rb8 {[%clk 0:00:35]} 18. Nxh7 {[%clk 0:00:37]}  Nf5 {[%clk 0:00:33]} 19. Qg5 {[%clk 0:00:30]}  Qd4 {[%clk 0:00:18]} 20. Qg6+ {[%clk 0:00:27]}  Kd8 {[%clk 0:00:19]} 21. Nc6+ {[%clk 0:00:28]}  Kd7 {[%clk 0:00:19]} 22. Nxd4 {[%clk 0:00:24]}  Nxd4 {[%clk 0:00:20]} 23. Nxf6+ {[%clk 0:00:23]}  exf6 {[%clk 0:00:21]} 24. Qf7+ {[%clk 0:00:23]} 1-0


[Site "https://www.chess.com"]

[Event "Titled Tuesday Blitz February 07 Early 2023"]
[White "Postny, Evgeny"]
[Black "Kalogeris, Ioannis"]
[WhiteFideId "2804344"]
[BlackFideId "4239563"]
[WhiteElo "2549"]
[BlackElo "2423"]
[Result "0-1"]
[Round "11"]
[TimeControl "180+2"]
[Date "2023.02.07"]
[WhiteClock "0:00:03"]
[BlackClock "0:00:22"]

1. e4 {[%clk 0:03:00]}  e5 {[%clk 0:02:57]} 2. Nf3 {[%clk 0:03:00]}  Nc6 {[%clk 0:02:58]} 3. Bc4 {[%clk 0:03:00]}  Bc5 {[%clk 0:02:56]} 4. c3 {[%clk 0:02:57]}  Nf6 {[%clk 0:02:56]} 5. d3 {[%clk 0:02:57]}  O-O {[%clk 0:02:55]} 6. O-O {[%clk 0:02:56]}  d6 {[%clk 0:02:56]} 7. h3 {[%clk 0:02:55]}  Bb6 {[%clk 0:02:56]} 8. a4 {[%clk 0:02:55]}  a6 {[%clk 0:02:55]} 9. Nbd2 {[%clk 0:02:54]}  Ne7 {[%clk 0:02:55]} 10. Bb3 {[%clk 0:02:49]}  Ng6 {[%clk 0:02:54]} 11. Nc4 {[%clk 0:02:50]}  Ba7 {[%clk 0:02:54]} 12. Be3 {[%clk 0:02:49]}  Be6 {[%clk 0:02:51]} 13. Bxa7 {[%clk 0:02:48]}  Rxa7 {[%clk 0:02:51]} 14. Ne3 {[%clk 0:02:49]}  Qd7 {[%clk 0:02:46]} 15. Bxe6 {[%clk 0:02:42]}  Qxe6 {[%clk 0:02:45]} 16. Re1 {[%clk 0:02:40]}  Raa8 {[%clk 0:02:41]} 17. Qc2 {[%clk 0:02:36]}  h6 {[%clk 0:02:40]} 18. c4 {[%clk 0:02:33]}  a5 {[%clk 0:02:27]} 19. Nd5 {[%clk 0:02:29]}  Ne8 {[%clk 0:02:25]} 20. d4 {[%clk 0:02:26]}  c6 {[%clk 0:02:23]} 21. Ne3 {[%clk 0:02:20]}  Nf6 {[%clk 0:02:17]} 22. d5 {[%clk 0:02:18]}  cxd5 {[%clk 0:02:13]} 23. Nxd5 {[%clk 0:02:03]}  Nxd5 {[%clk 0:01:57]} 24. cxd5 {[%clk 0:02:03]}  Qd7 {[%clk 0:01:54]} 25. Re3 {[%clk 0:02:03]}  Rfc8 {[%clk 0:01:52]} 26. Rc3 {[%clk 0:02:02]}  Rxc3 {[%clk 0:01:47]} 27. Qxc3 {[%clk 0:02:03]}  Nf4 {[%clk 0:01:44]} 28. Kh2 {[%clk 0:02:03]}  Rc8 {[%clk 0:01:39]} 29. Qxa5 {[%clk 0:02:02]}  Rc2 {[%clk 0:01:38]} 30. Rf1 {[%clk 0:01:52]}  Rxb2 {[%clk 0:01:32]} 31. Qc3 {[%clk 0:01:48]}  Ra2 {[%clk 0:01:30]} 32. a5 {[%clk 0:01:48]}  Qb5 {[%clk 0:01:27]} 33. Qc8+ {[%clk 0:01:48]}  Kh7 {[%clk 0:01:25]} 34. Qf5+ {[%clk 0:01:48]}  Kg8 {[%clk 0:00:54]} 35. Rc1 {[%clk 0:01:45]}  g6 {[%clk 0:00:55]} 36. Qf6 {[%clk 0:01:32]}  Qd7 {[%clk 0:00:53]} 37. Rf1 {[%clk 0:00:28]}  Nh5 {[%clk 0:00:53]} 38. Qh4 {[%clk 0:00:26]}  Rxa5 {[%clk 0:00:50]} 39. g4 {[%clk 0:00:25]}  Ra3 {[%clk 0:00:46]} 40. Nxe5 {[%clk 0:00:21]}  Qb5 {[%clk 0:00:25]} 41. Rc1 {[%clk 0:00:11]}  Nf4 {[%clk 0:00:23]} 42. Rc8+ {[%clk 0:00:03]}  Kg7 {[%clk 0:00:22]} 0-1


[Site "https://www.chess.com"]

[Event "Titled Tuesday Blitz February 07 Early 2023"]
[White "Nguyen, Quoc Hy"]
[Black "Defend, Balint"]
[WhiteFideId "12410853"]
[BlackFideId "17004853"]
[WhiteElo "2352"]
[BlackElo "1673"]
[Result "0-1"]
[Round "11"]
[TimeControl "180+2"]
[Date "2023.02.07"]
[WhiteClock "0:00:06"]
[BlackClock "0:00:07"]

1. e4 {[%clk 0:02:55]}  c6 {[%clk 0:02:58]} 2. d4 {[%clk 0:02:55]}  d5 {[%clk 0:02:58]} 3. Nc3 {[%clk 0:02:54]}  dxe4 {[%clk 0:02:57]} 4. Nxe4 {[%clk 0:02:55]}  Nf6 {[%clk 0:02:57]} 5. Nxf6+ {[%clk 0:02:54]}  exf6 {[%clk 0:02:58]} 6. c3 {[%clk 0:02:51]}  Bd6 {[%clk 0:02:55]} 7. Bd3 {[%clk 0:02:51]}  O-O {[%clk 0:02:52]} 8. Qc2 {[%clk 0:02:51]}  Re8+ {[%clk 0:02:49]} 9. Ne2 {[%clk 0:02:50]}  h5 {[%clk 0:02:46]} 10. Be3 {[%clk 0:02:44]}  h4 {[%clk 0:02:40]} 11. g3 {[%clk 0:02:32]}  h3 {[%clk 0:02:38]} 12. O-O-O {[%clk 0:02:30]}  Nd7 {[%clk 0:02:38]} 13. Nf4 {[%clk 0:02:17]}  Nf8 {[%clk 0:02:34]} 14. Bf5 {[%clk 0:02:13]}  g6 {[%clk 0:02:20]} 15. Bxc8 {[%clk 0:02:02]}  Qxc8 {[%clk 0:02:21]} 16. Rde1 {[%clk 0:02:02]}  Qg4 {[%clk 0:02:17]} 17. Qd1 {[%clk 0:01:57]}  Qxd1+ {[%clk 0:02:16]} 18. Kxd1 {[%clk 0:01:55]}  Bxf4 {[%clk 0:02:16]} 19. Bxf4 {[%clk 0:01:56]}  g5 {[%clk 0:02:13]} 20. Bd2 {[%clk 0:01:47]}  g4 {[%clk 0:02:13]} 21. f3 {[%clk 0:01:44]}  f5 {[%clk 0:02:12]} 22. Rhf1 {[%clk 0:01:40]}  Ng6 {[%clk 0:02:09]} 23. fxg4 {[%clk 0:01:36]}  fxg4 {[%clk 0:02:08]} 24. Rf5 {[%clk 0:01:37]}  Rxe1+ {[%clk 0:02:03]} 25. Kxe1 {[%clk 0:01:35]}  Re8+ {[%clk 0:02:00]} 26. Kf2 {[%clk 0:01:33]}  Re4 {[%clk 0:01:59]} 27. Be3 {[%clk 0:01:27]}  Kg7 {[%clk 0:01:57]} 28. d5 {[%clk 0:01:26]}  cxd5 {[%clk 0:01:45]} 29. Rxd5 {[%clk 0:01:27]}  a6 {[%clk 0:01:30]} 30. Rd7 {[%clk 0:01:23]}  Re7 {[%clk 0:01:27]} 31. Bd4+ {[%clk 0:01:17]}  f6 {[%clk 0:01:24]} 32. Rd6 {[%clk 0:01:13]}  Ne5 {[%clk 0:01:23]} 33. Bxe5 {[%clk 0:01:12]}  fxe5 {[%clk 0:01:24]} 34. Ke3 {[%clk 0:01:12]}  Rf7 {[%clk 0:01:08]} 35. Re6 {[%clk 0:01:10]}  Rf1 {[%clk 0:01:07]} 36. Rxe5 {[%clk 0:01:09]}  Rh1 {[%clk 0:00:31]} 37. Rg5+ {[%clk 0:00:31]}  Kf6 {[%clk 0:00:30]} 38. Rxg4 {[%clk 0:00:32]}  Rxh2 {[%clk 0:00:31]} 39. Rb4 {[%clk 0:00:29]}  b5 {[%clk 0:00:24]} 40. a4 {[%clk 0:00:26]}  Rg2 {[%clk 0:00:18]} 41. axb5 {[%clk 0:00:23]}  h2 {[%clk 0:00:18]} 42. Rh4 {[%clk 0:00:23]}  axb5 {[%clk 0:00:16]} 43. Kd4 {[%clk 0:00:14]}  Rxb2 {[%clk 0:00:15]} 44. Kc5 {[%clk 0:00:13]}  Kg6 {[%clk 0:00:16]} 45. Rh8 {[%clk 0:00:10]}  Kg5 {[%clk 0:00:16]} 46. Rh4 {[%clk 0:00:10]}  Kf5 {[%clk 0:00:14]} 47. Rf4+ {[%clk 0:00:10]}  Kg6 {[%clk 0:00:13]} 48. Rh4 {[%clk 0:00:11]}  Kg5 {[%clk 0:00:13]} 49. Kb6 {[%clk 0:00:09]}  b4 {[%clk 0:00:08]} 50. c4 {[%clk 0:00:10]}  b3 {[%clk 0:00:08]} 51. c5 {[%clk 0:00:10]}  Rc2 {[%clk 0:00:08]} 52. c6 {[%clk 0:00:06]}  b2 {[%clk 0:00:07]} 0-1


[Site "https://www.chess.com"]

[Event "Titled Tuesday Blitz February 07 Early 2023"]
[White "Borgaonkar Akshay"]
[Black "Madaminov, Mukhiddin"]
[WhiteFideId "25639110"]
[BlackFideId "14210703"]
[WhiteElo "1991"]
[BlackElo "2422"]
[Result "1-0"]
[Round "11"]
[TimeControl "180+2"]
[Date "2023.02.07"]
[WhiteClock "0:00:20"]
[BlackClock "0:00:44"]

1. e4 {[%clk 0:03:00]}  e5 {[%clk 0:02:55]} 2. Nf3 {[%clk 0:03:00]}  Nc6 {[%clk 0:02:55]} 3. Bb5 {[%clk 0:03:00]}  a6 {[%clk 0:02:55]} 4. Ba4 {[%clk 0:03:00]}  Nf6 {[%clk 0:02:56]} 5. d3 {[%clk 0:03:00]}  d6 {[%clk 0:02:55]} 6. c4 {[%clk 0:03:00]}  g6 {[%clk 0:02:54]} 7. Nc3 {[%clk 0:03:00]}  Bg7 {[%clk 0:02:54]} 8. Bg5 {[%clk 0:03:00]}  O-O {[%clk 0:02:52]} 9. Nd5 {[%clk 0:02:59]}  Nb8 {[%clk 0:02:49]} 10. h4 {[%clk 0:02:52]}  c6 {[%clk 0:02:45]} 11. Nxf6+ {[%clk 0:02:52]}  Bxf6 {[%clk 0:02:46]} 12. Bh6 {[%clk 0:02:53]}  Bg7 {[%clk 0:02:42]} 13. Qd2 {[%clk 0:02:53]}  Bg4 {[%clk 0:02:38]} 14. Bd1 {[%clk 0:02:52]}  Nd7 {[%clk 0:02:30]} 15. h5 {[%clk 0:02:34]}  Qf6 {[%clk 0:02:03]} 16. hxg6 {[%clk 0:02:31]}  fxg6 {[%clk 0:02:03]} 17. Bxg7 {[%clk 0:02:28]}  Qxg7 {[%clk 0:02:03]} 18. Ng5 {[%clk 0:02:25]}  Bxd1 {[%clk 0:02:03]} 19. Ne6 {[%clk 0:02:17]}  Qe7 {[%clk 0:01:59]} 20. Nxf8 {[%clk 0:02:16]}  Rxf8 {[%clk 0:02:00]} 21. Rxd1 {[%clk 0:02:15]}  Nc5 {[%clk 0:02:01]} 22. b4 {[%clk 0:02:14]}  Ne6 {[%clk 0:02:01]} 23. Qe3 {[%clk 0:02:08]}  Nd4 {[%clk 0:02:01]} 24. Kd2 {[%clk 0:02:07]}  a5 {[%clk 0:01:58]} 25. a3 {[%clk 0:01:51]}  axb4 {[%clk 0:01:55]} 26. axb4 {[%clk 0:01:51]}  Ra8 {[%clk 0:01:55]} 27. Qh6 {[%clk 0:01:25]}  Ra2+ {[%clk 0:01:52]} 28. Ke1 {[%clk 0:01:25]}  Qf7 {[%clk 0:01:52]} 29. Qh4 {[%clk 0:01:22]}  h5 {[%clk 0:01:48]} 30. Kf1 {[%clk 0:01:07]}  Kg7 {[%clk 0:01:34]} 31. Qg3 {[%clk 0:01:03]}  Ne2 {[%clk 0:01:20]} 32. Qe3 {[%clk 0:01:01]}  Nd4 {[%clk 0:01:20]} 33. Rh3 {[%clk 0:00:45]}  Rb2 {[%clk 0:01:13]} 34. Kg1 {[%clk 0:00:41]}  Rxb4 {[%clk 0:01:13]} 35. Rf1 {[%clk 0:00:35]}  Rb2 {[%clk 0:01:10]} 36. Kh1 {[%clk 0:00:29]}  Re2 {[%clk 0:01:08]} 37. Qg3 {[%clk 0:00:29]}  Ne6 {[%clk 0:01:06]} 38. Rxh5 {[%clk 0:00:25]}  Nf4 {[%clk 0:01:02]} 39. Rh2 {[%clk 0:00:25]}  Qf6 {[%clk 0:00:56]} 40. Qg4 {[%clk 0:00:21]}  Rd2 {[%clk 0:00:54]} 41. Qd7+ {[%clk 0:00:21]}  Kf8 {[%clk 0:00:49]} 42. Qc8+ {[%clk 0:00:19]}  Kg7 {[%clk 0:00:43]} 43. Qh8+ {[%clk 0:00:18]}  Kf7 {[%clk 0:00:43]} 44. Rh7+ {[%clk 0:00:19]}  Ke6 {[%clk 0:00:43]} 45. Qe8+ {[%clk 0:00:19]}  Qe7 {[%clk 0:00:44]} 46. Qxe7# {[%clk 0:00:20]} 1-0


[Site "https://www.chess.com"]